bitfinex/quotes_BTCUSD_20220731
["timestamp","ask_amount","ask_price","bid_price","bid_amount"]
[1659293664046,0.40845246,23724.0,23723.0,1.88887393]
[1659293664280,0.001,23725.0,23724.0,1.78895]
[1659293664503,0.001,23732.0,23728.0,1.7944]
[1659293664725,0.001,23732.0,23728.0,3.95283333]
[1659293664959,0.001,23732.0,23728.0,2.53447333]
[1659293665190,0.0022,23739.0,23731.0,0.5421]
[1659293665435,0.0022,23739.0,23735.0,0.40725733]
[1659293665661,0.0022,23739.0,23738.0,0.45725733]
[1659293665906,0.0022,23739.0,23738.0,0.75843333]
[1659293666641,0.0022,23739.0,23738.0,1.25053333]
[1659293667107,0.13887,23739.0,23738.0,0.70843333]
[1659293667388,0.13887,23739.0,23738.0,0.40725733]
[1659293667643,0.03162,23742.0,23738.0,0.40725733]
[1659293667862,0.001,23743.0,23739.0,0.40725733]
[1659293668346,0.001,23743.0,23742.0,0.05]
[1659293668571,0.001,23743.0,23742.0,0.75843333]
[1659293669031,0.001,23743.0,23742.0,0.45777951]
[1659293669255,0.001,23743.0,23742.0,0.70895551]
[1659293669495,0.00047887,23743.0,23742.0,0.70895551]
[1659293669990,0.00047887,23743.0,23742.0,0.75895551]
[1659293670212,0.00047887,23743.0,23742.0,1.20105551]
[1659293670680,0.00047887,23743.0,23742.0,0.75895551]
[1659293671191,0.00047887,23743.0,23742.0,1.20105551]
[1659293671424,0.02928887,23750.0,23743.0,0.85997299]
[1659293671659,0.001,23751.0,23745.0,0.44969557]
[1659293671910,0.001,23751.0,23746.0,0.40725733]
[1659293672147,0.03161,23750.0,23746.0,0.40725733]
[1659293672371,0.03161,23750.0,23743.0,0.82747744]
[1659293672372,0.04281925,23749.0,23743.0,0.82747744]
[1659293672608,0.04281925,23749.0,23744.0,0.40725733]
[1659293672609,0.03161,23748.0,23744.0,0.40725733]
[1659293672837,0.08161,23748.0,23744.0,0.40725733]
[1659293673067,0.03161,23748.0,23744.0,0.40725733]
[1659293673296,0.03161,23750.0,23744.0,0.40725733]
[1659293673569,0.08161,23750.0,23744.0,0.40725733]
[1659293673806,0.03161,23750.0,23744.0,0.40725733]
[1659293674033,0.08161,23750.0,23744.0,0.40725733]
[1659293674271,0.13161,23750.0,23744.0,0.40725733]
[1659293674500,0.75,23747.0,23742.0,0.40725733]
[1659293674732,0.59792167,23743.0,23741.0,0.00277377]
[1659293675173,0.93079961,23742.0,23728.0,0.81917459]
[1659293675175,0.98079961,23742.0,23728.0,0.81917459]
[1659293675397,0.97962361,23742.0,23730.0,0.40725733]
[1659293675621,0.64800361,23742.0,23731.0,0.70843333]
[1659293675848,0.03162,23741.0,23735.0,0.40725733]
[1659293676091,0.03162,23741.0,23736.0,0.301176]
[1659293676386,0.79005333,23741.0,23734.0,0.40725733]
[1659293676612,0.79005333,23741.0,23728.0,0.03187459]
[1659293676613,1.55842797,23740.0,23728.0,0.03187459]
[1659293676839,0.05,23736.0,23729.0,0.40725733]
[1659293677063,0.03163,23735.0,23729.0,0.40725733]
[1659293677530,0.13163,23736.0,23729.0,0.40725733]
[1659293678007,0.05,23734.0,23726.0,0.40725733]
[1659293678238,0.08163,23733.0,23726.0,0.40725733]
[1659293678970,0.08163,23733.0,23725.0,0.41025733]
[1659293678971,0.40725733,23732.0,23725.0,0.41025733]
[1659293679213,0.332816,23731.0,23725.0,0.41025733]
[1659293679438,0.301176,23730.0,23725.0,0.41025733]
[1659293679693,0.08164,23731.0,23725.0,0.41025733]
[1659293679894,0.13164,23731.0,23725.0,0.41025733]
[1659293680338,0.301176,23730.0,23725.0,0.41025733]
[1659293680560,0.03164,23731.0,23726.0,0.40725733]
[1659293680793,0.01270413,23737.0,23726.0,0.45725733]
[1659293681030,0.40719267,23736.0,23727.0,0.40725733]
[1659293681269,0.332806,23735.0,23727.0,0.40725733]
[1659293681542,0.03163,23735.0,23727.0,0.40725733]
[1659293681764,0.03163,23735.0,23727.0,0.41990081]
[1659293681990,0.5927,23739.0,23728.0,0.45725733]
[1659293681991,0.03163,23737.0,23728.0,0.45725733]
[1659293682216,0.5927,23739.0,23729.0,0.70843333]
[1659293682451,0.5927,23739.0,23728.0,0.05]
[1659293682452,0.5927,23739.0,23730.0,0.40725733]
[1659293682670,0.06319389,23740.0,23730.0,0.40725733]
[1659293682924,0.06319389,23740.0,23730.0,0.82413498]
[1659293683149,0.03157389,23740.0,23731.0,0.40725733]
[1659293683379,0.03157389,23740.0,23732.0,0.05]
[1659293683612,0.58106468,23741.0,23735.0,0.40725733]
[1659293683821,0.58106468,23741.0,23736.0,0.301176]
[1659293684045,0.58106468,23741.0,23736.0,0.40725733]
[1659293685216,0.63106468,23741.0,23736.0,0.40725733]
[1659293685452,0.9,23736.0,23727.0,0.41747811]
[1659293685676,0.14792703,23734.0,23728.0,0.2198187]
[1659293685911,0.50518436,23734.0,23727.0,0.40725733]
[1659293686146,0.09792703,23734.0,23725.0,0.003]
[1659293686383,0.09786237,23734.0,23725.0,0.003]
[1659293686676,0.03163,23733.0,23725.0,0.003]
[1659293686905,0.09786237,23734.0,23725.0,0.003]
[1659293687144,0.19786237,23734.0,23725.0,0.003]
[1659293687614,0.14786237,23734.0,23725.0,0.003]
[1659293687853,0.09786237,23734.0,23725.0,0.003]
[1659293688283,0.09786237,23734.0,23726.0,0.75670722]
[1659293688505,0.09786237,23734.0,23723.0,0.48639348]
[1659293688735,0.09786237,23734.0,23724.0,0.301176]
[1659293688983,0.09786237,23734.0,23725.0,0.301176]
[1659293689276,0.09786237,23734.0,23726.0,0.70725733]
[1659293689499,0.03163,23737.0,23727.0,0.40725733]
[1659293689728,0.60927876,23739.0,23729.0,0.50316155]
[1659293689729,0.03217876,23739.0,23729.0,0.50316155]
[1659293689949,0.03217876,23739.0,23733.0,0.40725733]
[1659293690170,0.58106468,23741.0,23738.0,0.05]
[1659293690391,0.58106468,23741.0,23739.0,0.40725733]
[1659293691502,0.58106468,23741.0,23740.0,6.466e-05]
[1659293691786,0.58106468,23741.0,23740.0,0.40732199]
[1659293692001,0.61573784,23741.0,23740.0,0.40732199]
[1659293692230,0.58106468,23741.0,23740.0,0.40732199]
[1659293692673,0.54016468,23741.0,23740.0,0.40725733]
[1659293694313,0.54016468,23741.0,23740.0,0.70843333]
[1659293697089,0.54016468,23741.0,23740.0,0.70849799]
[1659293697793,0.54161789,23741.0,23740.0,0.70843333]
[1659293699395,0.54161789,23741.0,23740.0,1.00843333]
[1659293699869,0.54161789,23741.0,23740.0,1.00862793]
[1659293700084,0.54161789,23741.0,23740.0,1.05862793]
[1659293700311,0.54161789,23741.0,23740.0,1.48234793]
[1659293700563,0.714,23747.0,23746.0,0.05]
[1659293700797,0.714,23747.0,23746.0,0.75843333]
[1659293701036,0.0022,23754.0,23746.0,0.75843333]
[1659293701259,0.0022,23754.0,23747.0,0.70843333]
[1659293701498,0.0022,23754.0,23748.0,0.70843333]
[1659293701734,0.0022,23754.0,23749.0,0.70843333]
[1659293701735,0.55206609,23750.0,23749.0,0.70843333]
[1659293702157,0.58673925,23750.0,23749.0,0.70843333]
[1659293702161,0.58673925,23750.0,23749.0,0.301176]
[1659293702390,0.58673925,23750.0,23741.0,0.37692316]
[1659293702391,1.05117,23749.0,23741.0,0.37692316]
[1659293702624,1.05117,23749.0,23742.0,0.40725733]
[1659293702625,0.4848,23745.0,23742.0,0.40725733]
[1659293702843,0.34340325,23744.0,23742.0,0.40725733]
[1659293703072,0.01264348,23748.0,23742.0,0.40725733]
[1659293703316,0.45725733,23749.0,23742.0,0.40725733]
[1659293703317,0.300584,23747.0,23742.0,0.40725733]
[1659293703538,0.50725733,23749.0,23742.0,0.40725733]
[1659293704009,0.332194,23748.0,23742.0,0.40725733]
[1659293704274,0.300584,23747.0,23742.0,0.40725733]
[1659293704483,0.03161,23748.0,23742.0,0.40725733]
[1659293704945,0.08161,23749.0,23742.0,0.40725733]
[1659293705167,0.4805,23750.0,23742.0,0.40725733]
[1659293705168,0.56211,23750.0,23742.0,0.40725733]
[1659293705595,0.05,23749.0,23742.0,0.40725733]
[1659293705846,0.56211,23750.0,23742.0,0.40725733]
[1659293706041,0.4805,23750.0,23742.0,0.40725733]
[1659293706493,0.61211,23750.0,23742.0,0.40725733]
[1659293706942,0.56211,23750.0,23742.0,0.40725733]
[1659293707410,0.56204537,23750.0,23742.0,0.40725733]
[1659293708115,0.9693027,23750.0,23742.0,0.40725733]
[1659293708351,0.9693027,23750.0,23743.0,0.40725733]
[1659293708352,0.61204537,23750.0,23743.0,0.40725733]
[1659293708569,0.58043537,23750.0,23743.0,0.40725733]
[1659293708805,0.97964386,23754.0,23743.0,0.40725733]
[1659293708806,0.03161,23753.0,23745.0,0.05]
[1659293709027,0.60974386,23754.0,23745.0,0.45725733]
[1659293709257,0.60974386,23754.0,23741.0,0.3768585]
[1659293709258,0.03161,23753.0,23746.0,0.40725733]
[1659293709977,0.03161,23750.0,23743.0,0.40725733]
[1659293710196,0.5783,23754.0,23744.0,0.300584]
[1659293710197,0.03161,23753.0,23744.0,0.300584]
[1659293710424,0.03161,23753.0,23745.0,0.40725733]
[1659293710644,1.252,23751.0,23745.0,0.40725733]
[1659293710867,0.03161,23750.0,23745.0,0.40725733]
[1659293711556,1.252,23751.0,23745.0,0.40725733]
[1659293711773,1.202,23751.0,23745.0,0.40725733]
[1659293712026,1.202,23751.0,23746.0,0.40725733]
[1659293712321,1.202,23751.0,23747.0,0.300584]
[1659293712538,1.202,23751.0,23748.0,0.61064433]
[1659293712756,1.20193537,23751.0,23750.0,0.05]
[1659293712985,0.00093537,23751.0,23750.0,0.45725733]
[1659293713217,0.00093537,23751.0,23750.0,0.75784133]
[1659293715308,0.00093537,23751.0,23750.0,1.58155133]
[1659293715519,0.00093537,23751.0,23750.0,1.54994133]
[1659293715761,0.00093537,23751.0,23750.0,1.24994133]
[1659293716451,0.71213537,23756.0,23753.0,0.05]
[1659293716673,0.04281925,23756.0,23754.0,0.40725733]
[1659293716902,0.0338,23761.0,23755.0,0.05]
[1659293717119,0.0338,23761.0,23756.0,0.40725733]
[1659293717614,0.0522,23761.0,23756.0,0.40725733]
[1659293718719,0.0022,23761.0,23756.0,0.40725733]
[1659293719170,0.0338,23761.0,23756.0,0.40725733]
[1659293719609,0.0838,23761.0,23756.0,0.40725733]
[1659293720063,0.0522,23761.0,23756.0,0.40725733]
[1659293721477,0.0022,23761.0,23756.0,0.40725733]
[1659293721724,0.0338,23761.0,23756.0,0.40725733]
[1659293721951,0.03099,23762.0,23756.0,0.40725733]
[1659293723072,0.61859,23763.0,23756.0,0.40725733]
[1659293723288,0.587,23763.0,23756.0,0.40725733]
[1659293723565,0.567,23763.0,23756.0,0.40725733]
[1659293723776,0.33159,23762.0,23756.0,0.40725733]
[1659293723992,0.03159,23762.0,23756.0,0.40725733]
[1659293724217,0.567,23763.0,23756.0,0.40725733]
[1659293724897,0.567,23763.0,23757.0,0.40725733]
[1659293725629,0.03159,23762.0,23757.0,0.40725733]
[1659293725863,0.567,23763.0,23757.0,0.40725733]
[1659293726314,0.300584,23762.0,23757.0,0.40725733]
[1659293726558,0.05,23762.0,23757.0,0.40725733]
[1659293726792,0.852705,23763.0,23757.0,0.40725733]
[1659293727039,0.902705,23763.0,23757.0,0.40725733]
[1659293727263,0.587,23763.0,23757.0,0.40725733]
[1659293728463,0.5869354,23763.0,23757.0,0.40725733]
[1659293728699,0.6185254,23763.0,23756.0,0.40725733]
[1659293728915,0.600584,23762.0,23756.0,0.40725733]
[1659293729152,0.025,23762.0,23756.0,0.40725733]
[1659293729590,0.5685254,23763.0,23756.0,0.40725733]
[1659293730028,0.5680051,23763.0,23756.0,0.40725733]
[1659293730281,0.105237,23762.0,23756.0,0.40725733]
[1659293730494,0.0316,23761.0,23756.0,0.40725733]
[1659293730715,0.05,23762.0,23756.0,0.40725733]
[1659293730924,0.6180051,23763.0,23756.0,0.40725733]
[1659293731150,0.5864151,23763.0,23756.0,0.40725733]
[1659293731408,0.05,23762.0,23756.0,0.40725733]
[1659293731624,0.0816,23761.0,23756.0,0.40725733]
[1659293731855,0.1,23761.0,23756.0,0.40725733]
[1659293732076,0.05,23761.0,23756.0,0.40725733]
[1659293732310,0.56859,23763.0,23756.0,0.40725733]
[1659293732535,0.61859,23763.0,23756.0,0.40725733]
[1659293732761,1.00784133,23762.0,23755.0,0.45725733]
[1659293733209,0.09786237,23756.0,23747.0,0.7637]
[1659293733214,0.05,23755.0,23747.0,1.4637]
[1659293733449,0.4848,23751.0,23748.0,0.40725733]
[1659293733698,0.33340324,23750.0,23748.0,0.40725733]
[1659293733942,0.4848,23751.0,23748.0,0.41232036]
[1659293734157,0.300587,23750.0,23748.0,0.40725733]
[1659293734430,0.4848,23751.0,23748.0,0.40725733]
[1659293734656,0.03281924,23750.0,23748.0,0.40725733]
[1659293735117,0.09786237,23749.0,23744.0,0.43887733]
[1659293735342,0.5348,23751.0,23745.0,0.70784433]
[1659293735569,0.5348,23751.0,23746.0,0.40725733]
[1659293735570,0.4848,23751.0,23746.0,0.40725733]
[1659293736239,0.5348,23751.0,23746.0,0.40725733]
[1659293736463,0.300587,23750.0,23746.0,0.40725733]
[1659293736679,0.03281924,23749.0,23746.0,0.40725733]
[1659293737160,0.640081,23751.0,23746.0,0.40725733]
[1659293737400,0.300587,23750.0,23742.0,0.40725733]
[1659293737613,0.205284,23750.0,23742.0,0.40725733]
[1659293737855,0.105291,23749.0,23742.0,0.40725733]
[1659293738075,0.03161,23749.0,23742.0,0.40725733]
[1659293738300,0.5348,23751.0,23743.0,0.40725733]
[1659293738525,0.5348,23751.0,23743.0,0.43887733]
[1659293738738,0.5848,23751.0,23744.0,0.40725733]
[1659293739647,0.4848,23751.0,23744.0,0.40725733]
[1659293739882,0.5348,23751.0,23744.0,0.40725733]
[1659293740118,0.5848,23751.0,23744.0,0.40725733]
[1659293741133,1.212641,23754.0,23751.0,6.463e-05]
[1659293741134,0.5521,23754.0,23751.0,6.463e-05]
[1659293741374,0.300587,23753.0,23751.0,6.463e-05]
[1659293741594,0.5521,23754.0,23751.0,0.40732196]
[1659293741839,0.300587,23753.0,23751.0,0.40732196]
[1659293742072,0.300587,23752.0,23751.0,0.40732196]
[1659293742302,0.585756,23756.0,23751.0,0.40725733]
[1659293742528,0.300587,23755.0,23751.0,0.41225734]
[1659293742783,0.5305,23756.0,23751.0,0.41225734]
[1659293743006,0.300587,23755.0,23751.0,0.40725733]
[1659293743236,0.300587,23754.0,23751.0,0.40725733]
[1659293743453,0.05,23755.0,23752.0,0.00500001]
[1659293743695,0.300587,23754.0,23751.0,0.39725734]
[1659293743928,0.08786237,23753.0,23751.0,0.39725734]
[1659293744165,0.03121616,23757.0,23752.0,0.03161]
[1659293744403,0.0022,23763.0,23753.0,0.70784433]
[1659293744678,0.0022,23763.0,23759.0,0.05]
[1659293744907,0.0022,23763.0,23762.0,0.65]
[1659293745126,0.0022,23763.0,23762.0,1.26048233]
[1659293745348,0.0022,23763.0,23762.0,0.66048233]
[1659293745576,0.001,23767.0,23764.0,1.1]
[1659293745799,0.001,23767.0,23763.0,1.0]
[1659293745800,0.001,23767.0,23766.0,0.45725733]
[1659293746034,0.001,23767.0,23766.0,0.66044233]
[1659293746248,0.4765,23770.0,23766.0,0.66044233]
[1659293746481,0.4765,23770.0,23767.0,0.40725733]
[1659293746748,0.001,23771.0,23767.0,0.40725733]
[1659293746749,0.001,23771.0,23769.0,0.04977425]
[1659293746978,0.001,23771.0,23770.0,0.350546]
[1659293747237,0.001,23771.0,23770.0,0.80780333]
[1659293747480,0.001,23771.0,23770.0,1.23148333]
[1659293747928,0.001,23771.0,23770.0,1.19990333]
[1659293748159,0.001,23771.0,23770.0,1.28148333]
[1659293748385,0.001,23771.0,23770.0,1.24990333]
[1659293748617,0.02043566,23782.0,23772.0,0.05]
[1659293748876,0.4848,23779.0,23773.0,0.40725733]
[1659293750527,0.03377,23783.0,23778.0,0.4]
[1659293750749,0.0022,23783.0,23779.0,0.40725733]
[1659293750976,0.03781925,23782.0,23779.0,0.40725733]
[1659293751198,0.0022,23783.0,23779.0,0.40725733]
[1659293751889,0.38781925,23782.0,23775.0,0.77943149]
[1659293752133,0.03781925,23782.0,23776.0,0.40725733]
[1659293752383,0.0022,23783.0,23776.0,0.40725733]
[1659293752618,0.0022,23783.0,23777.0,0.40725733]
[1659293752845,0.4805,23782.0,23776.0,0.40725733]
[1659293753079,0.03157,23781.0,23776.0,0.40725733]
[1659293753981,0.50707,23782.0,23776.0,0.40725733]
[1659293754203,0.300587,23781.0,23776.0,0.40725733]
[1659293754436,0.60707,23782.0,23776.0,0.40725733]
[1659293754917,0.4848,23778.0,23773.0,0.40725733]
[1659293755148,0.5348,23778.0,23773.0,0.40725733]
[1659293755377,0.4848,23778.0,23773.0,0.40725733]
[1659293755622,0.5348,23778.0,23773.0,0.40725733]
[1659293755857,0.4848,23774.0,23771.0,0.40725733]
[1659293756102,0.4848,23774.0,23769.0,1.2540433]
[1659293756103,0.08818934,23772.0,23764.0,0.43617528]
[1659293756345,0.4848,23770.0,23765.0,1.8831]
[1659293756569,0.4848,23770.0,23766.0,0.70784433]
[1659293756812,0.4848,23770.0,23767.0,0.40725733]
[1659293757515,0.4848,23774.0,23768.0,0.300587]
[1659293757741,0.4848,23774.0,23768.0,0.40725733]
[1659293758470,1.75497,23783.0,23773.0,0.40725733]
[1659293758709,0.487,23783.0,23777.0,0.40725733]
[1659293758942,0.482,23783.0,23777.0,0.40725733]
[1659293759387,0.4805,23778.0,23772.0,0.53344733]
[1659293759611,0.4805,23778.0,23773.0,0.40725733]
[1659293760126,0.4805,23778.0,23774.0,0.84935733]
[1659293760352,0.4805,23778.0,23775.0,0.40725733]
[1659293760820,0.4805,23783.0,23776.0,0.300587]
[1659293761073,0.4805,23783.0,23777.0,0.45725733]
[1659293761297,0.715,23784.0,23778.0,1.14935733]
[1659293761521,0.715,23784.0,23779.0,0.40725733]
[1659293762473,0.715,23784.0,23783.0,6.454e-05]
[1659293762704,0.001,23784.0,23783.0,0.45230455]
[1659293762994,0.001,23784.0,23783.0,0.40732187]
[1659293762995,0.13767,23784.0,23783.0,0.40732187]
[1659293763227,0.13767,23784.0,23783.0,6.454e-05]
[1659293763228,0.57649733,23784.0,23783.0,6.454e-05]
[1659293763467,0.87708433,23784.0,23774.0,0.44010871]
[1659293763688,0.87708433,23784.0,23774.0,0.84736604]
[1659293763689,0.4805,23777.0,23774.0,0.84736604]
[1659293764014,0.4805,23777.0,23776.0,0.35]
[1659293764118,0.4805,23782.0,23776.0,0.35]
[1659293764338,0.001,23784.0,23778.0,0.40725733]
[1659293765737,0.4805,23782.0,23778.0,0.40725733]
[1659293765973,0.4805,23782.0,23779.0,0.00267525]
[1659293766185,0.4805,23782.0,23780.0,0.40725733]
[1659293766897,0.300587,23781.0,23780.0,0.40725733]
[1659293767126,0.51831925,23782.0,23780.0,0.40725733]
[1659293767351,0.300587,23781.0,23780.0,0.41006587]
[1659293767614,0.4805,23782.0,23780.0,0.40725733]
[1659293767880,0.4805,23782.0,23777.0,0.40732189]
[1659293767881,0.300587,23781.0,23777.0,0.40732189]
[1659293768113,0.001,23784.0,23778.0,1.05784433]
[1659293768344,0.001,23784.0,23780.0,0.40725733]
[1659293768579,0.001,23784.0,23781.0,0.40725733]
[1659293768830,0.03881925,23784.0,23781.0,0.40725733]
[1659293769062,0.001,23784.0,23781.0,0.40725733]
[1659293769298,0.001,23784.0,23783.0,0.05]
[1659293769522,0.001,23784.0,23783.0,0.84935733]
[1659293769806,0.001,23784.0,23783.0,1.14994433]
[1659293770038,0.001,23784.0,23783.0,0.70784433]
[1659293770962,0.001,23784.0,23783.0,0.40725733]
[1659293771188,0.50646,23790.0,23780.0,1.25582575]
[1659293771417,0.40725733,23789.0,23781.0,0.40725733]
[1659293771760,0.40725733,23789.0,23784.0,0.43933439]
[1659293771765,0.40725733,23789.0,23781.0,0.40725733]
[1659293771981,0.332147,23788.0,23781.0,0.86014447]
[1659293772201,0.03156,23788.0,23782.0,0.40725733]
[1659293772427,0.43881733,23789.0,23782.0,0.40725733]
[1659293772657,0.43881733,23789.0,23779.0,0.5948]
[1659293772658,0.4839,23785.0,23779.0,0.40725733]
[1659293772892,0.03157,23784.0,23779.0,0.40725733]
[1659293773119,0.4839,23785.0,23779.0,0.40725733]
[1659293773341,0.4839,23785.0,23778.0,0.40725733]
[1659293773342,0.08157,23784.0,23778.0,0.40725733]
[1659293773599,0.48381821,23780.0,23776.0,0.40725733]
[1659293774517,0.48381821,23780.0,23777.0,0.00268628]
[1659293774730,0.48381821,23780.0,23777.0,0.40994361]
[1659293774953,0.52163746,23780.0,23777.0,0.40994361]
[1659293775174,0.5598268,23780.0,23777.0,0.40994361]
[1659293775397,0.48381821,23780.0,23777.0,0.40994361]
[1659293775654,0.48381821,23780.0,23777.0,0.00268628]
[1659293775878,0.03781925,23779.0,23773.0,1.237]
[1659293776095,0.48381821,23780.0,23774.0,0.300587]
[1659293776327,0.89107554,23780.0,23775.0,0.202811]
[1659293776550,0.94107554,23780.0,23773.0,0.40725733]
[1659293776790,0.4064,23776.0,23771.0,0.7]
[1659293777008,0.13818934,23770.0,23762.0,0.2]
[1659293777235,0.13818934,23770.0,23762.0,0.60725733]
[1659293777236,0.4757,23764.0,23762.0,0.60725733]
[1659293777498,0.03781925,23763.0,23762.0,0.60725733]
[1659293777729,0.4757,23764.0,23762.0,0.2]
[1659293777948,0.38877634,23763.0,23762.0,0.2]
[1659293778178,0.4757,23764.0,23762.0,0.2]
[1659293778397,0.63840625,23763.0,23762.0,0.2]
[1659293778859,1.04566358,23763.0,23762.0,0.08833061]
[1659293779105,1.17725358,23763.0,23762.0,0.08833061]
[1659293779587,0.81999625,23763.0,23754.0,0.5531]
[1659293779817,0.4839,23757.0,23755.0,0.70784433]
[1659293780050,0.52208934,23757.0,23756.0,0.203256]
[1659293780283,0.784487,23757.0,23754.0,0.001]
[1659293780506,0.784487,23757.0,23754.0,0.40825733]
[1659293780507,0.05,23756.0,23754.0,0.40825733]
[1659293780744,0.05,23756.0,23755.0,0.70784433]
[1659293780989,0.4839,23757.0,23755.0,0.70784433]
[1659293781240,0.4839,23757.0,23756.0,0.203262]
[1659293781469,0.4839,23757.0,23755.0,0.40725733]
[1659293781939,0.05,23755.0,23754.0,0.001]
[1659293782180,0.05,23755.0,23752.0,0.001]
[1659293782181,0.13818934,23753.0,23752.0,0.001]
[1659293782417,1.41154367,23753.0,23748.0,0.0011]
[1659293782647,0.4839,23749.0,23745.0,1.2213]
[1659293782889,0.4839,23749.0,23742.0,0.5945]
[1659293783127,0.05,23747.0,23743.0,0.40725733]
[1659293783351,0.4757,23745.0,23743.0,0.40725733]
[1659293783579,0.4757,23745.0,23744.0,0.300587]
[1659293783806,0.4757,23745.0,23743.0,0.40725733]
[1659293784057,0.4757,23745.0,23744.0,0.300587]
[1659293784533,0.47884609,23745.0,23744.0,0.300587]
[1659293784771,0.4757,23745.0,23744.0,0.300587]
[1659293785280,0.4757,23745.0,23743.0,0.40725733]
[1659293785516,0.51388934,23745.0,23743.0,0.40725733]
[1659293785779,0.4757,23750.0,23744.0,0.300587]
[1659293785968,0.98295733,23750.0,23741.0,0.40725733]
[1659293786204,0.4757,23742.0,23741.0,0.40725733]
[1659293786426,0.4757,23742.0,23741.0,0.70795615]
[1659293786651,0.09891644,23742.0,23741.0,0.70795615]
[1659293787808,0.09391644,23742.0,23741.0,0.70795615]
[1659293788025,0.4757,23746.0,23741.0,0.70795615]
[1659293788270,0.4757,23746.0,23741.0,0.40736915]
[1659293788481,0.47518039,23746.0,23741.0,0.40725733]
[1659293788691,0.5257,23742.0,23741.0,0.40725733]
[1659293788907,0.47034092,23742.0,23741.0,0.41049755]
[1659293789145,0.4839,23742.0,23741.0,0.41049755]
[1659293789361,0.4839,23742.0,23741.0,0.40725733]
[1659293789616,0.4839,23742.0,23740.0,0.0011]
[1659293789617,0.13818934,23741.0,23740.0,0.0011]
[1659293789815,0.53877634,23741.0,23740.0,0.0011]
[1659293790047,0.48877634,23741.0,23740.0,0.0011]
[1659293790254,0.43877634,23741.0,23740.0,0.0011]
[1659293790493,0.43877634,23741.0,23733.0,1.2089]
[1659293790494,0.13818934,23735.0,23733.0,0.0011]
[1659293790702,0.0511,23740.0,23722.0,0.0321]
[1659293790703,0.13818934,23724.0,23722.0,0.0321]
[1659293790955,0.13818934,23724.0,23723.0,0.12645]
[1659293791211,1.02114667,23724.0,23723.0,0.12645]
[1659293791428,1.02114667,23724.0,23715.0,1.03166]
[1659293791429,0.05,23717.0,23715.0,1.03166]
[1659293791664,0.05,23717.0,23713.0,0.0011]
[1659293791665,0.13818934,23715.0,23713.0,0.0011]
[1659293791890,0.79386461,23715.0,23713.0,0.0011]
[1659293792119,0.70784433,23715.0,23713.0,0.0011]
[1659293792353,0.40725733,23715.0,23713.0,0.0011]
[1659293792850,0.40725733,23715.0,23708.0,0.001]
[1659293792851,0.300587,23709.0,23708.0,0.001]
[1659293793056,0.784487,23709.0,23708.0,0.001]
[1659293793317,0.4839,23709.0,23708.0,0.40825733]
[1659293793541,0.89115733,23709.0,23708.0,0.001]
[1659293793756,1.29174433,23709.0,23708.0,0.001]
[1659293793985,0.48507785,23704.0,23703.0,0.001]
[1659293794212,0.96897785,23704.0,23703.0,0.001]
[1659293794466,1.36956485,23704.0,23703.0,0.001]
[1659293795016,0.91956485,23704.0,23703.0,0.001]
[1659293795257,0.4839,23704.0,23703.0,0.001]
[1659293795473,0.5839,23704.0,23703.0,0.001]
[1659293795930,0.4839,23704.0,23703.0,0.001]
[1659293796163,0.6339,23704.0,23703.0,0.001]
[1659293796429,0.884487,23704.0,23703.0,0.001]
[1659293796657,0.92230625,23704.0,23703.0,0.001]
[1659293796883,1.22230625,23704.0,23703.0,0.001]
[1659293797105,0.57171925,23704.0,23703.0,0.001]
[1659293797572,1.44456201,23704.0,23703.0,0.001]
[1659293798259,1.39456201,23704.0,23703.0,0.001]
[1659293798490,1.49456201,23704.0,23703.0,0.001]
[1659293799210,1.79456201,23704.0,23703.0,0.001]
[1659293799437,1.49456201,23704.0,23703.0,0.001]
[1659293799660,1.44456201,23704.0,23703.0,0.001]
[1659293800122,1.35674276,23704.0,23703.0,0.001]
[1659293801310,1.39456201,23704.0,23703.0,0.001]
[1659293801540,0.57225576,23704.0,23703.0,0.04375]
[1659293802259,0.57225576,23704.0,23703.0,0.45100733]
[1659293802489,0.07,23711.0,23703.0,0.78323733]
[1659293802764,0.07,23711.0,23706.0,0.90725733]
[1659293802999,0.4757,23713.0,23708.0,0.90725733]
[1659293803231,0.03191877,23724.0,23709.0,0.64339833]
[1659293803232,0.4839,23718.0,23709.0,0.64339833]
[1659293803470,0.05,23717.0,23710.0,0.70771633]
[1659293803698,0.59797785,23718.0,23711.0,0.64336433]
[1659293803935,0.59797785,23718.0,23712.0,0.70769033]
[1659293804205,0.5629,23718.0,23713.0,0.64334533]
[1659293804437,0.079,23718.0,23714.0,1.00766333]
[1659293804674,0.079,23718.0,23716.0,0.95725733]
[1659293804898,0.001,23726.0,23717.0,2.08927333]
[1659293805134,0.001,23726.0,23719.0,0.40725733]
[1659293805363,0.03607785,23726.0,23720.0,0.300319]
[1659293805585,0.001,23726.0,23722.0,0.40725733]
[1659293805838,0.001,23726.0,23724.0,0.40725733]
[1659293806062,0.001,23727.0,23726.0,1.05]
[1659293806289,0.079,23733.0,23726.0,2.09331089]
[1659293806552,0.079,23733.0,23729.0,0.05]
[1659293806783,0.4839,23740.0,23730.0,0.73907833]
[1659293807012,0.4839,23740.0,23732.0,1.00725733]
[1659293807224,0.4839,23740.0,23733.0,0.70739133]
[1659293807225,0.03507785,23740.0,23733.0,0.70739133]
[1659293807461,0.4839,23746.0,23735.0,0.40625733]
[1659293807691,0.4839,23746.0,23736.0,0.331724]
[1659293807692,0.12681,23740.0,23736.0,0.331724]
[1659293807914,0.12681,23740.0,23737.0,0.61145233]
[1659293808175,0.12681,23740.0,23738.0,0.70733033]
[1659293808403,0.16462925,23740.0,23739.0,0.204177]
[1659293808631,0.4757,23738.0,23729.0,0.03164]
[1659293808849,0.4757,23738.0,23724.0,0.4637]
[1659293808850,0.4757,23738.0,23731.0,0.40725733]
[1659293809294,0.4757,23738.0,23732.0,0.300634]
[1659293809508,0.05,23736.0,23733.0,0.60048133]
[1659293809762,0.03781925,23735.0,23734.0,0.70786433]
[1659293809987,0.35,23735.0,23734.0,0.70786433]
[1659293810216,0.05,23736.0,23734.0,0.40725733]
[1659293810649,0.4757,23738.0,23734.0,0.40725733]
[1659293810866,0.05,23740.0,23734.0,0.40725733]